Cogmind - Beta 13 @@@ ROGUE MODE // 2024.05.31 @ 00:46:20 Player: CanadianCogs Result: Destroyed by as-85419 with Assembled Blade Performance ------------- Evolutions (4) 2000 Regions Visited (11) 2200 Robots Destroyed (83) 415 Value Destroyed (2441) 2441 Prototype IDs (1) 20 Alien Tech Used (0) 0 Bonus (1885) 1885 TOTAL SCORE: 8961 Bonus ------- High Alert Combat Kills 185 Entered Garrisons 400 Used RIF Installer 500 Entered DSFs 500 Aligned with FarCom 300 Cogmind --------- Core Integrity 0/850 Matter 21/300 Energy 100/100 System Corruption 24% Temperature Cool (0) Movement Core (400) Ox7 Location -6/Garrison Parts ------- > --- POWER (2) -------- (None) > --- PROPULSION (4) --- (None) > --- UTILITY (6) ------ Advanced Heat Sink Advanced Heat Sink (fused) Large Storage Unit > --- WEAPON (3) ------- (None) > --- INVENTORY (15) --- Hypervelocity Gauss Cannon Hypervelocity Gauss Cannon Hypervelocity Gauss Cannon Peak State ------------ > --- POWER ------------ Light Nuclear Core Improved Deuterium Engine > --- PROPULSION ------- Carbon-fiber Leg Carbon-fiber Leg Gravmag Array > --- UTILITY ---------- Improved Heat Sink Improved Heat Sink Improved Heat Sink Advanced Heat Sink Large Storage Unit > --- WEAPON ----------- Lightning Gun Plasma Rifle Hypervelocity Gauss Cannon > --- INVENTORY -------- Hypervelocity Gauss Cannon Hypervelocity Gauss Cannon Hypervelocity Gauss Cannon Hypervelocity Gauss Cannon Hypervelocity Gauss Cannon Hypervelocity Gauss Cannon Hypervelocity Gauss Cannon [Rating: 57] Favorites ----------- Power Light Nuclear Core Engine Light Ion Engine Power Core Light Nuclear Core Propulsion Carbon-fiber Leg Treads Light Treads Leg Carbon-fiber Leg Wheel Armored Wheel Hover Unit Hover Unit Utility Hacking Suite Device Reaction Control System Storage Small Storage Unit Processor Advanced Targeting Computer Hackware Hacking Suite Protection Light Armor Plating Weapon Flak Cannon Energy Gun EM Pulse Gun Energy Cannon Beam Cannon Ballistic Cannon Flak Cannon Launcher Shock Bomb Launcher Special Melee Weapon Datajack Build | -11 -10 -10 -10 -9 -8 -8 -8 -7 -7 -6 -6 ------- Run | Yrd Mat Min Exi Min Mat Gar Mat Fac DSF Fac Gar Slots Evolved 8 | . . . . . 4 . . 2 . 2 . Power 1 | . . . . . . . . 1 . . . Propulsion 2 | . . . . . 2 . . . . . . Utility 4 | . . . . . 2 . . . . 2 . Weapon 1 | . . . . . . . . 1 . . . Parts Attached 120 | 7 14 . 3 . 30 13 1 1 12 6 33 Power 12 | 1 2 . . . 2 1 . . 1 1 4 Engine 5 | 1 2 . . . . . . . 1 . 1 Core 7 | . . . . . 2 1 . . . 1 3 Reactor . | . . . . . . . . . . . . Propulsion 30 | 2 6 . . . 12 . . . 5 . 5 Treads 1 | . . . . . . . . . . . 1 Leg 16 | . . . . . 8 . . . 5 . 3 Wheel 5 | 2 . . . . 3 . . . . . . Hover 8 | . 6 . . . 1 . . . . . 1 Flight . | . . . . . . . . . . . . Utility 29 | 2 1 . . . 10 5 1 . 1 2 7 Device 11 | 1 . . . . 3 1 . . . 1 5 Storage 3 | 1 . . . . . . . . 1 1 . Processor 1 | . . . . . . . 1 . . . . Hackware 2 | . 1 . . . 1 . . . . . . Protection 12 | . . . . . 6 4 . . . . 2 Artifact . | . . . . . . . . . . . . Weapon 49 | 2 5 . 3 . 6 7 . 1 5 3 17 Energy Gun 19 | 2 1 . 1 . . 2 . . 5 3 5 Energy Cannon 7 | . 4 . 2 . 1 . . . . . . Ballistic Gun . | . . . . . . . . . . . . Ballistic Cannon 21 | . . . . . 4 5 . . . . 12 Launcher 1 | . . . . . 1 . . . . . . Special Weapon . | . . . . . . . . . . . . Impact Weapon . | . . . . . . . . . . . . Slashing Weapon . | . . . . . . . . . . . . Piercing Weapon . | . . . . . . . . . . . . Special Melee Weapon 1 | . . . . . . . . 1 . . . Unidentified Prototypes 1 | . . . 1 . . . . . . . . Corrupted Parts 6 | . . . . . . . . . 1 . 5 System Corruption 25 | . . . . . . . . . 1 . 24 Parts Lost 58 | . 6 . . . 3 3 8 . 7 1 30 Power 6 | . 1 . . . . . 1 . 1 . 3 Propulsion 16 | . 2 . . . 2 1 3 . . 1 7 Utility 14 | . . . . . 1 2 2 . 3 . 6 Weapon 22 | . 3 . . . . . 2 . 3 . 14 Highest Loss Streak 11 | . 6 . . . 1 1 6 . 2 1 11 To Critical Strikes 2 | . . . . . . . . . . . 2 Average Slot Usage (%) 86 | . 98 85 84 85 97 89 78 30 26 60 58 Engine 1 | . 13 . . . . . . . 1 . 1 Core 5 | . . . . . 8 8 1 . . 2 4 Leg 21 | . . . . . 29 34 25 . 5 25 9 Wheel 3 | . 11 . . . 4 . . . . . . Hover 3 | . 15 28 28 28 1 . . . . . 3 Device 7 | . 5 . . . 8 6 . . . 4 12 Storage 4 | . 14 14 14 14 2 . . . 2 6 6 Hackware 11 | . 8 14 14 14 15 18 18 15 4 . . Protection 6 | . . . . . 8 11 17 . . . 2 Energy Gun 6 | . 26 . 1 . . 7 . . 4 20 7 Energy Cannon 2 | . 1 28 26 28 4 . . . . . . Ballistic Cannon 8 | . . . . . 13 2 16 . . . 7 Naked Turns . | . . . . . . . . . . . . Heaviest Build 60 | 15 15 11 13 11 26 25 25 1 33 42 60 Greatest Support 64 | 32 32 12 12 12 54 54 42 3 64 48 48 Greatest Overweight (x) 17 | . 3 . 1 . 1 . . . 10 . 17 Average Overweight (x) . | . . . . . . . . . 1 . 1 Largest Inventory Capacity 15 | 8 8 8 8 8 8 5 5 5 15 15 15 Average Capacity 7 | 7 8 8 8 8 5 5 5 5 8 14 15 Most Carried 10 | 5 8 2 5 6 8 5 5 3 5 3 10 Average Carried 5 | 1 6 2 3 5 5 4 4 3 3 1 5 Final Capacity 15 | 8 8 8 8 8 5 5 5 5 5 15 15 Final Carried 6 | 2 2 2 4 6 5 5 4 3 4 3 3 Class Distribution -------------------- 50% | Hacker-Mutant 20% | Mutant 16% | Scavenger-Mutant 5% | Skirmisher 5% | Scavenger-Skirmisher Dominant Class ---------------- Scavenger-Mutant | -10/Materials Scavenger-Mutant | -10/Mines Mutant | -10/Exiles Mutant | -9/Mines Hacker-Mutant | -8/Materials Hacker-Mutant | -8/Garrison Hacker-Mutant | -8/Materials Hacker-Mutant | -7/Factory Mutant | -7/DSF Skirmisher | -6/Factory Scavenger-Skirmisher | -6/Garrison Resources | -11 -10 -10 -10 -9 -8 -8 -8 -7 -7 -6 -6 ----------- Run | Yrd Mat Min Exi Min Mat Gar Mat Fac DSF Fac Gar Matter Collected 2802 | 270 35 . . 20 631 350 68 . 90 . 1338 Remotely . | . . . . . . . . . . . . Salvage Created 3188 | 139 351 . . . 698 842 62 . 123 . 973 Parts 170 | 12 30 . . . 48 50 2 . 8 . 20 Haulers Intercepted 2 | . 1 . . . 1 . . . . . . Recyclers Shooed . | . . . . . . . . . . . . Parts Field Recycled . | . . . . . . . . . . . . Retrieved Matter . | . . . . . . . . . . . . Parts Self-Destructed . | . . . . . . . . . . . . Prevented . | . . . . . . . . . . . . Kills | -11 -10 -10 -10 -9 -8 -8 -8 -7 -7 -6 -6 ------- Run | Yrd Mat Min Exi Min Mat Gar Mat Fac DSF Fac Gar Combat Hostiles Destroyed 95 | . 9 . . . 18 24 1 . 2 . 41 Guns 39 | . 5 . . . . 21 . . 2 . 11 Cannons 50 | . 1 . . . 16 3 1 . . . 29 AOE 1 | . 1 . . . . . . . . . . Classes Destroyed 15 | 2 6 . . . 3 2 . . 1 . 1 Worker 1 | . 1 . . . . . . . . . . Builder 2 | . . . . . 2 . . . . . . Tunneler 4 | 3 . . . . 1 . . . . . . Hauler 2 | . 1 . . . 1 . . . . . . Recycler 2 | 1 . . . . 1 . . . . . . Operator 2 | . 1 . . . 1 . . . . . . Watcher 7 | . 2 . . . 3 1 1 . . . . Swarmer 24 | . 6 . . . 6 10 . . . . 2 Grunt 25 | . 3 . . . 9 8 . . . . 5 Protector 1 | . . . . . . 1 . . . . . Sentry 9 | . . . . . 2 4 1 . . . 2 Demolisher 1 | . . . . . . 1 . . . . . Specialist 2 | . . . . . . . . . 2 . . Hunter 1 | . . . . . 1 . . . . . . Assembled 32 | . . . . . . . . . . . 32 Best Kill Streak 10 | 2 3 . . . 3 4 1 . 1 . 10 Combat Bots Only 10 | . 3 . . . 3 4 1 . 1 . 10 Max Kills in Single Turn 2 | 2 1 . . . 2 2 1 . 1 . 2 Gunslinging . | . . . . . . . . . . . . Exploded 1 | . 1 . . . . . . . . . . Melee . | . . . . . . . . . . . . Uniques/NPCs Destroyed . | . . . . . . . . . . . . Combat | -11 -10 -10 -10 -9 -8 -8 -8 -7 -7 -6 -6 -------- Run | Yrd Mat Min Exi Min Mat Gar Mat Fac DSF Fac Gar Hostile Shots Fired 907 | . 66 . . . 85 66 116 . 144 7 423 Missed 260 | . 15 . . . 23 21 50 . 41 3 107 Damage Taken 10184 | . 576 . . . 860 764 1137 . 2089 57 4701 Core 2148 | . 128 . . . 158 82 224 . 679 . 877 Absorbed by Shields 7 | . . . . . . . . . 7 . . Regen/Repaired (Parts) 59 | . 21 . . . 38 . . . . . . Core Remaining (%) 41 | 100 . . . 48 . . 15 . 3 . . Volleys Fired 248 | 6 30 . . . 77 4 4 . 4 . 123 Largest 3 | 2 2 . . . 2 2 2 . 3 . 3 Hottest 191 | 80 120 . . . 120 88 88 . 165 . 191 Shots Fired 597 | 12 56 . . . 148 94 8 . 17 . 262 Gun 255 | 12 42 . . . . 86 . . 17 . 98 Cannon 340 | . 14 . . . 146 8 8 . . . 164 Launcher 2 | . . . . . 2 . . . . . . Special . | . . . . . . . . . . . . Kinetic 260 | . . . . . 80 8 8 . . . 164 Thermal 215 | . 14 . . . 66 86 . . 11 . 38 Explosive . | . . . . . . . . . . . . Electromagnetic 122 | 12 42 . . . 2 . . . 6 . 60 Robot Hit Streak 12 | 6 5 . . . 12 12 4 . 8 . 11 Robot Miss Streak 15 | 2 4 . . . 15 6 6 . 2 . 12 Penetration Max 1 | . . . . . . . . . . . 1 Secondary Targets . | . . . . . . . . . . . . Autonomous 97 | . . . . . . 86 . . 11 . . Shots Hit Robots 353 | 7 29 . . . 106 70 6 . 14 . 121 Core Hits 199 | 5 13 . . . 72 32 7 . 5 . 65 Critical Kills 27 | . 1 . . . . . . . . . 26 Critical Parts Destroyed 26 | . . . . . . . . . . . 26 Critical Strikes 57 | . 1 . . . . . . . . . 56 Burn 3 | . . . . . . . . . . . 3 Meltdown 1 | . 1 . . . . . . . . . . Destroy 53 | . . . . . . . . . . . 53 Melee Attacks . | . . . . . . . . . . . . Impact . | . . . . . . . . . . . . Slashing . | . . . . . . . . . . . . Piercing . | . . . . . . . . . . . . Sneak Attacks . | . . . . . . . . . . . . Combat Hostiles . | . . . . . . . . . . . . Follow-up Attacks . | . . . . . . . . . . . . Damage Inflicted 7014 | 127 474 . . . 1710 1797 146 . 323 . 2437 Guns 3523 | 102 318 . . . . 1752 . . 320 . 1031 Cannons 3313 | . 124 . . . 1665 45 125 . . . 1354 Explosions 149 | 25 32 . . . 40 . . . . . 52 Melee . | . . . . . . . . . . . . Ramming 29 | . . . . . 5 . 21 . 3 . . Kinetic 2366 | . . . . . 842 45 125 . . . 1354 Thermal 3454 | 25 156 . . . 823 1752 . . 222 . 476 Explosive . | . . . . . . . . . . . . Electromagnetic 1165 | 102 318 . . . 40 . . . 98 . 607 Impact . | . . . . . . . . . . . . Slashing . | . . . . . . . . . . . . Piercing . | . . . . . . . . . . . . Highest Corruption 24 | . . . . . . . . . 5 . 24 Average Corruption 19 | . . . . . . . . . 1 . 22 Corruption Purged . | . . . . . . . . . . . . Corruption Blocked . | . . . . . . . . . . . . Effects 41 | . . . . . . . . . . . 41 Message Errors 8 | . . . . . . . . . . . 8 Matter Fused 5 | . . . . . . . . . . . 5 Heat Flow Errors 5 | . . . . . . . . . . . 5 Energy Discharges 3 | . . . . . . . . . . . 3 Parts Rejected 1 | . . . . . . . . . . . 1 Parts Fused 2 | . . . . . . . . . . . 2 Data Loss (minor) 3 | . . . . . . . . . . . 3 Misfires 1 | . . . . . . . . . . . 1 Alerts 1 | . . . . . . . . . . . 1 Misdirections 1 | . . . . . . . . . . . 1 Weapon Failures 11 | . . . . . . . . . . . 11 Overload Shots . | . . . . . . . . . . . . Overflow Damage 35 | . 15 . . . . . . . . . 20 Projectiles 23 | . 15 . . . . . . . . . 8 Explosions 12 | . . . . . . . . . . . 12 Melee . | . . . . . . . . . . . . Knockbacks 54 | . . . . . 32 . 2 . . . 20 Impact . | . . . . . . . . . . . . Kinetic 53 | . . . . . 32 . 2 . . . 19 Secondary 1 | . . . . . . . . . . . 1 Self-Inflicted Damage 100 | . 28 . . . . . . . . . 72 Shots 2 | . 1 . . . . . . . . . 1 Rammed . | . . . . . . . . . . . . Targets Rammed 9 | . . . . . 2 . 6 . 1 . . Kicked 9 | . . . . . 2 . 6 . 1 . . Crushed . | . . . . . . . . . . . . Highest Temperature 466 | 56 423 . . . 342 48 57 . 3 . 466 Average Temperature 113 | 30 99 . . . 87 22 21 . 2 . 175 Received Heat Transfer 2474 | . 183 . . . 414 180 261 . 684 . 752 Effects 13 | . . . . . 3 . . . . . 10 Energy Bleed 3 | . . . . . 1 . . . . . 2 Interference 9 | . . . . . 2 . . . . . 7 Matter Decay 1 | . . . . . . . . . . . 1 Siege Activations . | . . . . . . . . . . . . Robots Corrupted 2 | . 1 . . . . . . . . . 1 Combat Hostiles 2 | . 1 . . . . . . . . . 1 Parts Fried 10 | . 4 . . . 1 . . . 3 . 2 Impact Corruptions . | . . . . . . . . . . . . Robots Melted 3 | . 1 . . . 2 . . . . . . Combat Hostiles 3 | . 1 . . . 2 . . . . . . Parts Melted 7 | . 1 . . . 4 2 . . . . . Heat Transferred 5745 | 50 259 . . . 1739 2116 . . 296 . 1285 Parts Sabotaged . | . . . . . . . . . . . . Parts Stolen . | . . . . . . . . . . . . Parts Stripped . | . . . . . . . . . . . . Power Chain Reactions 3 | 1 1 . . . . . . . . . 1 Alert | -11 -10 -10 -10 -9 -8 -8 -8 -7 -7 -6 -6 ------- Run | Yrd Mat Min Exi Min Mat Gar Mat Fac DSF Fac Gar Peak Influence 763 | 20 162 52 . . 306 763 527 230 176 81 566 Initial 371 | . 13 52 . . . 196 371 230 161 81 49 Average 194 | 8 40 52 . . 98 528 433 230 162 80 361 Maximum Alert Level 3 | . . . . . 1 3 2 1 . . 2 Low Security (%) 59 | 100 100 100 . 100 76 4 . . 100 100 6 Level 1 21 | . . . . . 23 14 30 100 . . 50 Level 2 16 | . . . . . . 56 69 . . . 43 Level 3 2 | . . . . . . 24 . . . . . Level 4 . | . . . . . . . . . . . . Level 5 . | . . . . . . . . . . . . High Security . | . . . . . . . . . . . . Max Security . | . . . . . . . . . . . . Squads Dispatched 18 | . 2 . . . 9 . 3 . 3 1 . Investigation 9 | . 2 . . . 6 . 1 . . . . Extermination . | . . . . . . . . . . . . Reinforcement 7 | . . . . . 2 . 1 . 3 1 . Assault . | . . . . . . . . . . . . Garrison 2 | . . . . . 1 . 1 . . . . Intercept . | . . . . . . . . . . . . Searches Triggered . | . . . . . . . . . . . . Construction Impeded . | . . . . . . . . . . . . Haulers Reinforced . | . . . . . . . . . . . . Active Scanning Responses . | . . . . . . . . . . . . Cargo Convoy Interrupts . | . . . . . . . . . . . . Stealth | -11 -10 -10 -10 -9 -8 -8 -8 -7 -7 -6 -6 --------- Run | Yrd Mat Min Exi Min Mat Gar Mat Fac DSF Fac Gar Distress Signals 7 | . . . . . 6 . 1 . . . . Communications Jammed . | . . . . . . . . . . . . Distress Signals . | . . . . . . . . . . . . Times Spotted 190 | . 18 . . . 43 25 21 . 16 4 63 Peak Tracking Total 13 | . 5 . . . 6 6 13 . 12 3 12 Tactical Retreats 30 | . 4 . . . 9 2 3 . 1 . 11 Traps | -11 -10 -10 -10 -9 -8 -8 -8 -7 -7 -6 -6 ------- Run | Yrd Mat Min Exi Min Mat Gar Mat Fac DSF Fac Gar Traps Triggered 7 | . 1 . . . 1 1 . . 2 . 2 Indirectly . | . . . . . . . . . . . . Trap Hack Attempts . | . . . . . . . . . . . . Triggered . | . . . . . . . . . . . . Disarmed . | . . . . . . . . . . . . Reprogrammed . | . . . . . . . . . . . . Reused . | . . . . . . . . . . . . Traps Extracted . | . . . . . . . . . . . . Installed . | . . . . . . . . . . . . Triggered 2 | . 2 . . . . . . . . . . Machines | -11 -10 -10 -10 -9 -8 -8 -8 -7 -7 -6 -6 ---------- Run | Yrd Mat Min Exi Min Mat Gar Mat Fac DSF Fac Gar Machines Disabled 4 | . 2 . . . 1 . . . . . 1 Max in Single Turn 1 | . 1 . . . 1 . . . . . 1 Garrison Relay 2 | . . . . . . . . . . . 2 Machines Repaired . | . . . . . . . . . . . . Machines Dismantled . | . . . . . . . . . . . . Machines Sabotaged . | . . . . . . . . . . . . Overloaded Fab Kills . | . . . . . . . . . . . . Hacking | -11 -10 -10 -10 -9 -8 -8 -8 -7 -7 -6 -6 --------- Run | Yrd Mat Min Exi Min Mat Gar Mat Fac DSF Fac Gar Machines Accessed 19 | . 5 . . . 8 1 1 1 . 2 1 Terminals 11 | . 3 . . . 3 1 1 1 . 1 1 Fabricators . | . . . . . . . . . . . . Repair Stations 2 | . 1 . . . 1 . . . . . . Recycling Units 2 | . 1 . . . 1 . . . . . . Scanalyzers 2 | . . . . . 2 . . . . . . Garrison Access 2 | . . . . . 1 . . . . 1 . Total Hacks 66 | . 21 . . . 31 4 3 1 . 3 3 Successful 36 | . 11 . . . 20 1 1 1 . 2 . Failed 30 | . 10 . . . 11 3 2 . . 1 3 Catastrophic 3 | . 1 . . . 1 1 . . . . . Database Lockouts . | . . . . . . . . . . . . Manual 36 | . 16 . 1 . 12 3 1 . . . 3 Terminals 42 | . 15 . . . 14 4 3 1 . 2 3 Fabricators . | . . . . . . . . . . . . Repair Stations 6 | . 2 . . . 4 . . . . . . Recycling Units 6 | . 4 . . . 2 . . . . . . Scanalyzers 10 | . . . . . 10 . . . . . . Garrison Access 2 | . . . . . 1 . . . . 1 . Terminal Hacks 11 | . 4 . . . 4 1 . 1 . 1 . Record 2 | . . . . . 2 . . . . . . Robot Schematic 5 | . 4 . . . 1 . . . . . . Open DSF 2 | . . . . . . . . 1 . 1 . Recall Reinforcements 1 | . . . . . 1 . . . . . . Garrison Registry 1 | . . . . . . 1 . . . . . Fabricator Hacks . | . . . . . . . . . . . . Repair Station Hacks 6 | . 2 . . . 4 . . . . . . Scan Component 3 | . 1 . . . 2 . . . . . . Repair 3 | . 1 . . . 2 . . . . . . Recycling Unit Hacks 2 | . 2 . . . . . . . . . . Report Inventory 1 | . 1 . . . . . . . . . . Retrieve Components 1 | . 1 . . . . . . . . . . Scanalyzer 6 | . . . . . 6 . . . . . . Insert Component 3 | . . . . . 3 . . . . . . Analyze 3 | . . . . . 3 . . . . . . Garrison Access Hacks 2 | . . . . . 1 . . . . 1 . Unlock Access 2 | . . . . . 1 . . . . 1 . Unauthorized Hacks 9 | . 3 . . . 5 . 1 . . . . Terminals 7 | . 3 . . . 3 . 1 . . . . Botnet 6 | . 3 . . . 3 . . . . . . Disrupt 1 | . . . . . . . 1 . . . . Fabricators . | . . . . . . . . . . . . Repair Stations . | . . . . . . . . . . . . Recycling Units 1 | . . . . . 1 . . . . . . Tunnel 1 | . . . . . 1 . . . . . . Scanalyzers 1 | . . . . . 1 . . . . . . Extract 1 | . . . . . 1 . . . . . . Garrison Access . | . . . . . . . . . . . . Data Cores Recovered 1 | . 1 . . . . . . . . . . Used 1 | . 1 . . . . . . . . . . Hacking Detections 15 | . 4 . . . 6 1 1 . . 2 1 Full Trace Events 12 | . 4 . . . 5 1 1 . . . 1 Feedback Events . | . . . . . . . . . . . . Feedback Blocked . | . . . . . . . . . . . . Robot Schematics Acquired 5 | . 4 . . . 1 . . . . . . Robots Built . | . . . . . . . . . . . . Authchips . | . . . . . . . . . . . . Time . | . . . . . . . . . . . . Total Robot Build Rating . | . . . . . . . . . . . . Part Schematics Acquired 5 | . . . . . 5 . . . . . . Parts Built . | . . . . . . . . . . . . Authchips . | . . . . . . . . . . . . Time . | . . . . . . . . . . . . Total Part Build Rating . | . . . . . . . . . . . . Parts Repaired 3 | . 1 . . . 2 . . . . . . Time 90 | . 26 . . . 64 . . . . . . Parts Recycled . | . . . . . . . . . . . . Recycled Matter . | . . . . . . . . . . . . Retrieved Matter . | . . . . . . . . . . . . Retrieved Components 2 | . 2 . . . . . . . . . . Parts Scanalyzed 3 | . . . . . 3 . . . . . . Part Schematics Acquired 3 | . . . . . 3 . . . . . . Parts Damaged . | . . . . . . . . . . . . Bothacking | -11 -10 -10 -10 -9 -8 -8 -8 -7 -7 -6 -6 ------------ Run | Yrd Mat Min Exi Min Mat Gar Mat Fac DSF Fac Gar Used RIF Installer 1 | . . . . . . 1 . . . . . Robots Hacked . | . . . . . . . . . . . . Non-combat . | . . . . . . . . . . . . Combat . | . . . . . . . . . . . . Robot Hacks Applied . | . . . . . . . . . . . . Relay Couplers Released 9 | . . . . . . . . . . . 9 Machine Destruction 9 | . . . . . . . . . . . 9 Fabnet Peak Effective % . | . . . . . . . . . . . . Robots Rewired . | . . . . . . . . . . . . Allies Hacked . | . . . . . . . . . . . . Hacks Repelled . | . . . . . . . . . . . . Allies | -11 -10 -10 -10 -9 -8 -8 -8 -7 -7 -6 -6 -------- Run | Yrd Mat Min Exi Min Mat Gar Mat Fac DSF Fac Gar Total Allies . | . . . . . . . . . . . . Largest Group . | . . . . . . . . . . . . Highest-Rated Group . | . . . . . . . . . . . . Highest-Rated Ally . | . . . . . . . . . . . . Total Orders . | . . . . . . . . . . . . Ally Attacks . | . . . . . . . . . . . . Total Damage . | . . . . . . . . . . . . Kills . | . . . . . . . . . . . . Allies Corrupted . | . . . . . . . . . . . . Allies Melted . | . . . . . . . . . . . . Intel | -11 -10 -10 -10 -9 -8 -8 -8 -7 -7 -6 -6 ------- Run | Yrd Mat Min Exi Min Mat Gar Mat Fac DSF Fac Gar Robot Analysis Total . | . . . . . . . . . . . . Derelict Logs Recovered 2 | . . . . 2 . . . . . . . Drone Launches . | . . . . . . . . . . . . Drone Recoveries . | . . . . . . . . . . . . Exploration | -11 -10 -10 -10 -9 -8 -8 -8 -7 -7 -6 -6 ------------- Run | Yrd Mat Min Exi Min Mat Gar Mat Fac DSF Fac Gar Turns Passed 8030 | 76 1017 12 142 61 3795 925 378 13 240 240 1131 Spaces Moved 3470 | 39 458 22 236 106 1189 502 220 23 123 174 378 Core 154 | 13 4 . . . . . 12 23 90 . 12 Treads . | . . . . . . . . . . . . Legs 1922 | . . . . . 818 502 208 . 33 174 187 Wheels 394 | 26 153 . . . 215 . . . . . . Hover 1000 | . 301 22 236 106 156 . . . . . 179 Flight . | . . . . . . . . . . . . Fastest Speed 50 | 50 56 56 56 56 66 100 50 50 50 120 110 Average Speed 99 | 83 74 56 57 56 96 105 103 50 129 120 156 Slowest Speed 900 | 100 200 56 116 56 130 110 110 50 550 120 900 Overloaded Moves . | . . . . . . . . . . . . Propulsion Burnouts . | . . . . . . . . . . . . Robots Hopped . | . . . . . . . . . . . . Cave-ins Triggered . | . . . . . . . . . . . . Exploration Rate (%) 34 | 5 50 16 60 26 48 53 34 1 87 5 26 Regions Visited 11 Branch Regions 3 Pre-discovered Areas 3 | . . . . 2 1 . . . . . . Known Exits Taken 4 | . . . . . 1 . 1 1 . 1 . Unknown Exits Taken 5 | 1 1 1 1 1 . . . . . . . Scrap Searched 1 | . . . . 1 . . . . . . . Spaces Dug . | . . . . . . . . . . . . Terrain Destroyed 20 | 3 5 . . . . 2 . . . . 10 Melee . | . . . . . . . . . . . . Projectile 3 | . . . . . . 2 . . . . 1 AOE 17 | 3 5 . . . . . . . . . 9 Terrain Rammed . | . . . . . . . . . . . . Walls Destroyed . | . . . . . . . . . . . . Machines Disabled . | . . . . . . . . . . . . Actions | -11 -10 -10 -10 -9 -8 -8 -8 -7 -7 -6 -6 --------- Run | Yrd Mat Min Exi Min Mat Gar Mat Fac DSF Fac Gar Total 7582 | 70 1080 21 244 107 3688 893 360 24 198 205 692 Wait 3550 | 11 556 . . . 2354 354 128 . 17 21 109 Move 3462 | 38 457 21 235 105 1189 501 219 23 122 174 378 Hop . | . . . . . . . . . . . . Pick Up 89 | 8 13 . 2 2 12 6 1 . 8 4 33 Fast Attach 29 | 1 3 . . . 15 6 . . 4 . . Attach 84 | 6 7 . 3 . 12 7 1 1 8 6 33 Detach 13 | . . . 3 . 5 1 . . 2 . 2 Swap 7 | . 4 . . . 3 . . . . . . Drop 46 | . 10 . 1 . 19 10 1 . 2 . 3 Fire 248 | 6 30 . . . 77 4 4 . 4 . 123 Melee . | . . . . . . . . . . . . Ram . | . . . . . . . . . . . . Kick 9 | . . . . . 2 . 6 . 1 . . Crush . | . . . . . . . . . . . . Escape Stasis 44 | . . . . . . 4 . . 30 . 10 Rewire 1 | . . . . . . . . . . . 1 Trap . | . . . . . . . . . . . . Miscellaneous . | . . . . . . . . . . . . Route ------- -11/Scrapyard -10/Materials -10/Mines (discovered 2 exits: [*Mat] / *Exi) -10/Exiles -9/Mines -8/Materials (discovered 2 exits: Fac / Gar) -8/Garrison (discovered 4 exits: *Mat x4) -8/Materials -7/Factory -7/DSF -6/Factory -6/Garrison History --------- Turn | Location | Event 11 | -11/Scrapyard | Discovered new exit (range 15) 77 | -11/Scrapyard | Entered Materials 303 | -10/Materials | Build established: Mutant 505 | -10/Materials | Discovered new exit (range 15) 679 | -10/Materials | Repaired EM Pulse Gun 795 | -10/Materials | Build established: Scavenger-Mutant 1084 | -10/Materials | Core integrity fell below 50% 1094 | -10/Materials | Entered Mines 1095 | -10/Mines | Discovered new exit (range 15) 1104 | -10/Mines | Deemed a non-threat by the Exiles lab entrance 1104 | -10/Mines | Discovered new exit (range 5) 1106 | -10/Mines | Entered Exiles 1117 | -10/Exiles | Lost 6 parts (1p2n3w) 1123 | -10/Exiles | Met 8R-AWN 1131 | -10/Exiles | Met EX-HEX 1149 | -10/Exiles | Met EX-BIN 1156 | -10/Exiles | Aligned with FarCom system 1156 | -10/Exiles | Given EX-Vault access code 1170 | -10/Exiles | Opened EX-Vault 1172 | -10/Exiles | Found Prototype Storage 1175 | -10/Exiles | Found Prototype Energy Gun 1177 | -10/Exiles | Identified AWS/Thermal 1194 | -10/Exiles | Warned to stay clear of 0b10 Research branches 1210 | -10/Exiles | Met EX-DEC 1242 | -10/Exiles | Discovered new exit (range 10) 1248 | -10/Exiles | Left Exiles lab with AWS/Thermal 1248 | -10/Exiles | Entered Mines 1262 | -9/Mines | Learned 2 Materials zone layouts 1288 | -9/Mines | Learned location of Zion (-7) 1296 | -9/Mines | Learned location of Storage (-9) 1298 | -9/Mines | Discovered new exit (range 8) 1309 | -9/Mines | Entered Materials 1309 | -8/Materials | Evolved 4 slots: Propulsion x2, Utility x2 1310 | -8/Materials | Identified exit to Factory 1354 | -8/Materials | Build established: Mutant 1924 | -8/Materials | Build established: Scavenger-Mutant 2679 | -8/Materials | Build established: Hacker-Mutant 4301 | -8/Materials | Repaired Flak Cannon 4399 | -8/Materials | Repaired Lgt. Armor Plating 5104 | -8/Materials | Identified exit to Garrison 5104 | -8/Materials | Entered Garrison 5150 | -8/Garrison | Triggered checkpoint 5182 | -8/Garrison | Discovered new exit (range 52) 5182 | -8/Garrison | Discovered new exit (range 31) 5182 | -8/Garrison | Discovered new exit (range 63) 5182 | -8/Garrison | Discovered new exit (range 66) 5578 | -8/Garrison | Triggered checkpoint 5836 | -8/Garrison | Triggered checkpoint 5892 | -8/Garrison | Installed Relay Interface Framework 6029 | -8/Garrison | Entered Materials 6166 | -8/Materials | Garrison activated, responded to threat 6336 | -8/Materials | Core integrity fell below 50% 6403 | -8/Materials | Core integrity fell below 20% 6404 | -8/Materials | Discovered exit to Factory (range 6) 6407 | -8/Materials | Entered Factory 6407 | -7/Factory | Evolved 2 slots: Power x1, Weapon x1 6420 | -7/Factory | Identified exit to DSF 6420 | -7/Factory | Entered DSF 6432 | -7/DSF | Lost 6 parts (2n2u2w) 6444 | -7/DSF | Additional patrols routed to DSF 6601 | -7/DSF | Core integrity fell below 50% 6617 | -7/DSF | Core integrity fell below 20% 6641 | -7/DSF | Discovered new exit (range 16) 6660 | -7/DSF | Entered Factory 6660 | -6/Factory | Evolved 2 slots: Utility x2 6900 | -6/Factory | Identified exit to Garrison 6900 | -6/Factory | Entered Garrison 6905 | -6/Garrison | Assembled breached garrison interior 6951 | -6/Garrison | Build established: Skirmisher 7283 | -6/Garrison | Core integrity fell below 50% 7299 | -6/Garrison | Lost 11 parts (1p4n2u4w) 7432 | -6/Garrison | Build established: Mutant 7509 | -6/Garrison | System corruption reached 10% 7532 | -6/Garrison | Lost 3 parts (1u2w) 7754 | -6/Garrison | Lost 5 parts (1p2u2w) 7777 | -6/Garrison | Destroyed 8 combat bots 7937 | -6/Garrison | Core integrity fell below 20% 7974 | -6/Garrison | Destroyed 10 combat bots 8031 | -6/Garrison | Destroyed by as-85419 with Assembled Blade Last Messages --------------- 08004_ System corrupted: Matter fused (-7). 08008_ System corrupted: Hyp. Gauss Cannon jammed. 08008_ Hyp. Gauss Cannon destroyed. 08011_ as-28916 suffers critical hit (Destroy). 08011_ Destroyed Asb. Heavy Rifle. 08011_ as-28916 suffers critical hit (Destroy). 08011_ as-28916 destroyed. 08014_ Acquired 31 matter. 08020_ D&MPO7O0,KBVO7T9KEGY 08021_ HV Slug penetrates as-85419. 08021_ HV Slug penetrates Reinforced Barrier. 08021_ HV Slug penetrates as-47011. 08021_ as-47011 suffers critical hit (Destroy). 08021_ as-47011 destroyed. 08024_ as-85419 suffers critical hit (Destroy). 08024_ Destroyed Asb. Hover Unit. 08027_ Acquired 10 matter. 08027_ Hyp. Gauss Cannon destroyed. 08029_ Knocked back. 08030_ Acquired 1 matter. Map ----- +----------------------------------------------------+ | ?????????#^^#????????????????????????????????????? | | ?????????#" #????????????????????????????????????? | | ########## *#????????????????????????????????????? | | #????????????????????????????????????? | | % #????????????????????????????????????? | | [ #????????????????????????????????????? | | ######### #????????????????????????????????????? | | ????????# #????????????????????????????????????? | | ????????# #????????????????????????????????????? | | ????????# #????????????????????????????????????? | | ????????# #????????????????????????????????????? | | ????????# #????????????????????????????????????? | | ?#####??# #????????????????????????????????????? | | ?# #??# #????????????????????????????????????? | | ## ####= #????????????????????????????????????? | | %% [= #???????????????#????????????????????? | | % #?????????????? ????????????????????? | | ##"##### ###???????????? #????????????????????? | | %## #??## # #???????????? #????????????????????? | | ## #??#" " #???????????? #????????????????????? | | # #??## " #???????????? #????????????????????? | | # ##### ""#############C##???????????????????? | | # " [" %% !C#???????????????????? | | ######" "############ a%## ##??????????????? | | #????## % aa % #??????????????? | | ###?????# @ % a ???????? | | ????????# % % ???????? | | ????????## ######### ## ## #######????????? | | ?????????###???????# ## #? #??????????????? | | ?????????????????? ??% ? ?????????????? | | ?????????????????# ?? %= ? # #???????????? | | ?????????????????# ??%==%% # ? ##???????????? | | ?????????????????# ???[%% ?#? ???????????? | | ?????????????????###??? # ???##???????????? | | ?????????????????????? ## ???????????????? | | ?????????????????????? ? =%% ?%%%??????????????? | | ?????????????????????? ? %%!!% % % ?????????????? | | ????????????????????? ?? %=%= ? #??????????????? | | ????????????????????????# *=# %????????????????? | | ????????????????????????? #???????????????????? | | ?????????????????????????###?????????????????????? | | ?????????????????????????????????????????????????? | | ?????????????????????????????????????????????????? | | ?????????????????????????????????????????????????? | | ?????????????????????????????????????????????????? | | ?????????????????????????????????????????????????? | | ?????????????????????????????????????????????????? | | ?????????????????????????????????????????????????? | | ?????????????????????????????????????????????????? | | ?????????????????????????????????????????????????? | +----------------------------------------------------+ Best States ------------- Heat Dissipation 98 Energy Generation 25 Energy Capacity 350 Matter Stores 300 Matter Capacity 300 Sight Range 16 Terrain Scan Density 10 Armor Coverage 300 Evasion (%) 59 Targeting Accuracy 8 Offensive Hacking 10 Defensive Hacking 10 Item Schematics ----------------- Hover Unit | -8/Materials | Scanalyzed Carbon-fiber Leg | -8/Materials | Scanalyzed Flight Unit | -8/Materials | Scanalyzed ECM Suite | -8/Materials | Extracted System Shield | -8/Materials | Extracted Robot Schematics ------------------ S-10 Pest | -10/Materials | Hacked G-34 Mercenary | -10/Materials | Hacked W-16 Scout | -10/Materials | Hacked O-16 Technician | -10/Materials | Hacked G-47 Trooper | -8/Materials | Hacked Fabricated ------------ Nothing Alien Tech Used ----------------- None Achievements -------------- None Challenges ------------ None Game ------ Seed WarpDisposableSegregator Manual? 0 Play Time 02:19:12 Cumulative 36.0 hours Start 2024.05.30 @ 21:09:41 End 2024.05.31 @ 00:46:20 Sessions 1 Manual Loads 0 Difficulty Rogue Special Mode None Game No. 61 Rogue 61 Adventurer 0 Explorer 0 Win Type - Total 0 Types 0/0/0/0/0/0/0/0/0 Lore% 21 Gallery% 29 Achievement% 26 Wizard Run 0 Options --------- Layout 0 ASCII 0 Keyboard 0 Movement Mouse Keybinds 0 Fullscreen 2 Font 18/SmallcapsGlow Map View 38x25 Zoom Use 85% Tactical HUD 1 Map Filters NONE Filters NONE Steam 1 RUN: 6b88bcfa-63d0-439f-b728-505dfe794162